Cogmind - Beta 13 @@@ ROGUE MODE // 2024.04.06 @ 16:25:52 Player: Demo Result: Destroyed by G-34 Mercenary with Small Laser Performance ------------- Evolutions (1) 500 Regions Visited (3) 600 Robots Destroyed (19) 95 Value Destroyed (510) 510 Prototype IDs (1) 20 Alien Tech Used (0) 0 Bonus (0) 0 TOTAL SCORE: 1725 Bonus ------- None Cogmind --------- Core Integrity 0/400 Matter 261/300 Energy 241/265 System Corruption 3% Temperature Danger (407) Movement Flying (104) Ox1 Location -9/Storage Parts ------- > --- POWER (1) -------- Improved Ion Engine > --- PROPULSION (3) --- Improved Flight Unit Improved Flight Unit Improved Flight Unit > --- UTILITY (3) ------ Heat Sink > --- WEAPON (2) ------- Particle Cannon Particle Cannon > --- INVENTORY (5) ---- Improved Ion Engine Huge Storage Unit Terrain Scan Processor EM Pulse Gun Peak State ------------ > --- POWER ------------ Improved Ion Engine > --- PROPULSION ------- Improved Flight Unit Improved Flight Unit Improved Flight Unit > --- UTILITY ---------- Heat Sink Light Armor Plating > --- WEAPON ----------- Particle Cannon Particle Cannon > --- INVENTORY -------- Huge Storage Unit Terrain Scan Processor EM Pulse Gun [Rating: 17] Favorites ----------- Power Improved Ion Engine Engine Improved Ion Engine Propulsion Improved Flight Unit Treads Light Treads Wheel Wheel Hover Unit Improved Hover Unit Flight Unit Improved Flight Unit Utility Heat Sink Device Heat Sink Storage Small Storage Unit Protection Light Armor Plating Weapon Medium Laser Energy Gun Medium Laser Energy Cannon Particle Cannon Build | -11 -10 -9 -9 ------- Run | Yrd Mat Mat Sto Slots Evolved 2 | . . 2 . Power . | . . . . Propulsion 1 | . . 1 . Utility 1 | . . 1 . Weapon . | . . . . Parts Attached 21 | 7 1 . 13 Power 2 | . 1 . 1 Engine 2 | . 1 . 1 Core . | . . . . Reactor . | . . . . Propulsion 10 | 3 . . 7 Treads 2 | 2 . . . Leg . | . . . . Wheel 2 | 1 . . 1 Hover 3 | . . . 3 Flight 3 | . . . 3 Utility 4 | 1 . . 3 Device 1 | . . . 1 Storage 2 | 1 . . 1 Processor . | . . . . Hackware . | . . . . Protection 1 | . . . 1 Artifact . | . . . . Weapon 5 | 3 . . 2 Energy Gun 3 | 3 . . . Energy Cannon 2 | . . . 2 Ballistic Gun . | . . . . Ballistic Cannon . | . . . . Launcher . | . . . . Special Weapon . | . . . . Impact Weapon . | . . . . Slashing Weapon . | . . . . Piercing Weapon . | . . . . Special Melee Weapon . | . . . . Unidentified Prototypes 1 | . . . 1 Parts Lost 7 | . . . 7 Power . | . . . . Propulsion 5 | . . . 5 Utility 1 | . . . 1 Weapon 1 | . . . 1 Highest Loss Streak 6 | . . . 6 To Critical Strikes . | . . . . Average Slot Usage (%) 70 | . 71 55 70 Engine 5 | . . . 6 Treads 4 | . 14 11 3 Wheel 4 | . 14 11 3 Flight 19 | . . . 21 Device 5 | . . . 6 Storage 5 | . 14 11 4 Protection 5 | . . . 5 Energy Gun 8 | . 28 22 6 Energy Cannon 12 | . . . 13 Naked Turns . | . . . . Heaviest Build 84 | 9 9 9 84 Greatest Support 21 | 20 10 10 21 Greatest Overweight (x) 8 | 2 . . 8 Average Overweight (x) 1 | . . . 2 Largest Inventory Capacity 25 | 8 8 8 25 Average Capacity 11 | 7 8 8 12 Most Carried 14 | 1 2 2 14 Average Carried 4 | . 1 2 6 Final Capacity 8 | 8 8 8 5 Final Carried 4 | 1 2 2 4 Class Distribution -------------------- 100% | Mutant Dominant Class ---------------- Mutant | -10/Materials Mutant | -9/Materials Mutant | -9/Storage Resources | -11 -10 -9 -9 ----------- Run | Yrd Mat Mat Sto Matter Collected 380 | 270 10 . 100 Remotely . | . . . . Salvage Created 766 | 215 10 . 541 Parts 40 | 9 4 . 27 Haulers Intercepted . | . . . . Recyclers Shooed . | . . . . Parts Field Recycled . | . . . . Retrieved Matter . | . . . . Parts Self-Destructed . | . . . . Prevented . | . . . . Kills | -11 -10 -9 -9 ------- Run | Yrd Mat Mat Sto Combat Hostiles Destroyed 12 | . . . 12 Cannons 12 | . . . 12 Classes Destroyed 4 | 2 . . 2 Tunneler 6 | 5 1 . . Recycler 1 | 1 . . . Grunt 8 | . . . 8 Sentry 4 | . . . 4 Best Kill Streak 4 | 4 1 . 3 Combat Bots Only 3 | . . . 3 Max Kills in Single Turn 1 | 1 1 . 1 Gunslinging . | . . . . Exploded . | . . . . Melee . | . . . . Uniques/NPCs Destroyed . | . . . . Combat | -11 -10 -9 -9 -------- Run | Yrd Mat Mat Sto Hostile Shots Fired 136 | . 12 . 124 Missed 45 | . 5 . 40 Damage Taken 1195 | . 80 . 1115 Core 431 | . 21 . 410 Absorbed by Shields . | . . . . Core Remaining (%) 95 | 100 91 . . Volleys Fired 48 | 15 2 . 31 Largest 2 | 2 2 . 2 Hottest 136 | 100 100 . 136 Shots Fired 95 | 30 4 . 61 Gun 34 | 30 4 . . Cannon 61 | . . . 61 Launcher . | . . . . Special . | . . . . Kinetic . | . . . . Thermal 95 | 30 4 . 61 Explosive . | . . . . Electromagnetic . | . . . . Robot Hit Streak 10 | 9 10 . 9 Robot Miss Streak 4 | 2 2 . 4 Penetration Max . | . . . . Secondary Targets . | . . . . Shots Hit Robots 59 | 20 1 . 38 Core Hits 20 | 7 1 . 12 Critical Kills . | . . . . Critical Parts Destroyed . | . . . . Critical Strikes 1 | 1 . . . Burn 1 | 1 . . . Melee Attacks . | . . . . Impact . | . . . . Slashing . | . . . . Piercing . | . . . . Sneak Attacks . | . . . . Combat Hostiles . | . . . . Follow-up Attacks . | . . . . Damage Inflicted 1065 | 251 13 . 801 Guns 264 | 251 13 . . Cannons 801 | . . . 801 Explosions . | . . . . Melee . | . . . . Ramming . | . . . . Kinetic . | . . . . Thermal 1065 | 251 13 . 801 Explosive . | . . . . Electromagnetic . | . . . . Impact . | . . . . Slashing . | . . . . Piercing . | . . . . Highest Corruption 3 | . . . 3 Average Corruption 2 | . . . 2 Corruption Purged . | . . . . Corruption Blocked . | . . . . Effects 1 | . . . 1 Data Loss (major) 1 | . . . 1 Overload Shots . | . . . . Overflow Damage 11 | . . . 11 Projectiles 11 | . . . 11 Explosions . | . . . . Melee . | . . . . Knockbacks . | . . . . Impact . | . . . . Kinetic . | . . . . Secondary . | . . . . Self-Inflicted Damage . | . . . . Shots . | . . . . Rammed . | . . . . Targets Rammed . | . . . . Kicked . | . . . . Crushed . | . . . . Highest Temperature 425 | 169 24 . 425 Average Temperature 112 | 58 16 . 137 Received Heat Transfer 519 | . 42 . 477 Effects 7 | . . . 7 Shutdowns 2 | . . . 2 Energy Bleed 1 | . . . 1 Interference 2 | . . . 2 Matter Decay 1 | . . . 1 Damage (minor) 1 | . . . 1 Siege Activations . | . . . . Robots Corrupted . | . . . . Combat Hostiles . | . . . . Parts Fried . | . . . . Impact Corruptions . | . . . . Robots Melted . | . . . . Combat Hostiles . | . . . . Parts Melted 11 | 8 . . 3 Heat Transferred 2294 | 814 37 . 1443 Parts Sabotaged . | . . . . Parts Stolen . | . . . . Parts Stripped . | . . . . Power Chain Reactions . | . . . . Alert | -11 -10 -9 -9 ------- Run | Yrd Mat Mat Sto Peak Influence 221 | 30 24 9 221 Initial 19 | . 19 9 3 Average 64 | 10 22 9 83 Maximum Alert Level 1 | . . . 1 Low Security (%) 93 | 100 100 100 90 Level 1 6 | . . . 9 Level 2 . | . . . . Level 3 . | . . . . Level 4 . | . . . . Level 5 . | . . . . High Security . | . . . . Max Security . | . . . . Squads Dispatched 6 | . 2 . 4 Investigation 4 | . 1 . 3 Extermination . | . . . . Reinforcement 2 | . 1 . 1 Assault . | . . . . Garrison . | . . . . Intercept . | . . . . Searches Triggered . | . . . . Construction Impeded . | . . . . Haulers Reinforced . | . . . . Active Scanning Responses . | . . . . Cargo Convoy Interrupts . | . . . . Stealth | -11 -10 -9 -9 --------- Run | Yrd Mat Mat Sto Distress Signals . | . . . . Communications Jammed . | . . . . Distress Signals . | . . . . Times Spotted 23 | . 6 . 17 Peak Tracking Total 5 | . 5 . 4 Tactical Retreats 1 | . . . 1 Traps | -11 -10 -9 -9 ------- Run | Yrd Mat Mat Sto Traps Triggered 6 | . 1 . 5 Indirectly . | . . . . Trap Hack Attempts . | . . . . Triggered . | . . . . Disarmed . | . . . . Reprogrammed 1 | . . . 1 Reused 1 | . . . 1 Traps Extracted . | . . . . Installed . | . . . . Triggered 1 | . . . 1 Machines | -11 -10 -9 -9 ---------- Run | Yrd Mat Mat Sto Machines Disabled 1 | . . . 1 Max in Single Turn 1 | . . . 1 Machines Repaired . | . . . . Machines Dismantled . | . . . . Machines Sabotaged . | . . . . Overloaded Fab Kills . | . . . . Hacking | -11 -10 -9 -9 --------- Run | Yrd Mat Mat Sto Machines Accessed 5 | . . . 5 Terminals 5 | . . . 5 Fabricators . | . . . . Repair Stations . | . . . . Recycling Units . | . . . . Scanalyzers . | . . . . Garrison Access . | . . . . Total Hacks 14 | . . . 14 Successful 4 | . . . 4 Failed 10 | . . . 10 Catastrophic 3 | . . . 3 Database Lockouts . | . . . . Manual 8 | . . . 8 Terminals 14 | . . . 14 Fabricators . | . . . . Repair Stations . | . . . . Recycling Units . | . . . . Scanalyzers . | . . . . Garrison Access . | . . . . Terminal Hacks 4 | . . . 4 Open Door 1 | . . . 1 Branch Access Points 1 | . . . 1 Terminal Index 1 | . . . 1 Reprogram Traps 1 | . . . 1 Fabricator Hacks . | . . . . Repair Station Hacks . | . . . . Recycling Unit Hacks . | . . . . Scanalyzer . | . . . . Garrison Access Hacks . | . . . . Unauthorized Hacks . | . . . . Terminals . | . . . . Fabricators . | . . . . Repair Stations . | . . . . Recycling Units . | . . . . Scanalyzers . | . . . . Garrison Access . | . . . . Data Cores Recovered . | . . . . Used . | . . . . Hacking Detections 5 | . . . 5 Full Trace Events 4 | . . . 4 Feedback Events . | . . . . Feedback Blocked . | . . . . Robot Schematics Acquired . | . . . . Robots Built . | . . . . Authchips . | . . . . Time . | . . . . Total Robot Build Rating . | . . . . Part Schematics Acquired . | . . . . Parts Built . | . . . . Authchips . | . . . . Time . | . . . . Total Part Build Rating . | . . . . Parts Repaired . | . . . . Time . | . . . . Parts Recycled . | . . . . Recycled Matter . | . . . . Retrieved Matter . | . . . . Retrieved Components . | . . . . Parts Scanalyzed . | . . . . Part Schematics Acquired . | . . . . Parts Damaged . | . . . . Bothacking | -11 -10 -9 -9 ------------ Run | Yrd Mat Mat Sto Used RIF Installer . | . . . . Robots Hacked . | . . . . Non-combat . | . . . . Combat . | . . . . Robot Hacks Applied . | . . . . Relay Couplers Released . | . . . . Fabnet Peak Effective % . | . . . . Robots Rewired . | . . . . Allies Hacked . | . . . . Hacks Repelled . | . . . . Allies | -11 -10 -9 -9 -------- Run | Yrd Mat Mat Sto Total Allies . | . . . . Largest Group . | . . . . Highest-Rated Group . | . . . . Highest-Rated Ally . | . . . . Total Orders . | . . . . Ally Attacks . | . . . . Total Damage . | . . . . Kills . | . . . . Allies Corrupted . | . . . . Allies Melted . | . . . . Intel | -11 -10 -9 -9 ------- Run | Yrd Mat Mat Sto Robot Analysis Total . | . . . . Derelict Logs Recovered . | . . . . Drone Launches . | . . . . Drone Recoveries . | . . . . Exploration | -11 -10 -9 -9 ------------- Run | Yrd Mat Mat Sto Turns Passed 711 | 140 44 6 521 Spaces Moved 396 | 91 44 8 253 Core 39 | 39 . . . Treads 4 | 3 . . 1 Legs . | . . . . Wheels 182 | 49 44 8 81 Hover 3 | . . . 3 Flight 168 | . . . 168 Fastest Speed 34 | 50 80 80 34 Average Speed 115 | 91 80 80 130 Slowest Speed 384 | 160 80 80 384 Overloaded Moves . | . . . . Propulsion Burnouts . | . . . . Robots Hopped . | . . . . Cave-ins Triggered . | . . . . Exploration Rate (%) 14 | 7 15 2 33 Regions Visited 3 Branch Regions 1 Pre-discovered Areas . | . . . . Known Exits Taken . | . . . . Unknown Exits Taken 3 | 1 1 1 . Scrap Searched . | . . . . Spaces Dug . | . . . . Terrain Destroyed . | . . . . Melee . | . . . . Projectile . | . . . . AOE . | . . . . Terrain Rammed . | . . . . Walls Destroyed . | . . . . Machines Disabled . | . . . . Actions | -11 -10 -9 -9 --------- Run | Yrd Mat Mat Sto Total 550 | 114 48 7 381 Wait 66 | . . . 66 Move 393 | 90 43 7 253 Hop . | . . . . Pick Up 14 | . 1 . 13 Fast Attach 12 | 7 1 . 4 Attach 9 | . . . 9 Detach 1 | 1 . . . Swap . | . . . . Drop 4 | 1 1 . 2 Fire 48 | 15 2 . 31 Melee . | . . . . Ram . | . . . . Kick . | . . . . Crush . | . . . . Escape Stasis 3 | . . . 3 Rewire . | . . . . Trap . | . . . . Miscellaneous . | . . . . Route ------- -11/Scrapyard -10/Materials -9/Materials -9/Storage (discovered 1 exit: Rec) History --------- Turn | Location | Event 6 | -11/Scrapyard | Discovered new exit (range 14) 141 | -11/Scrapyard | Entered Materials 178 | -10/Materials | Discovered new exit (range 10) 185 | -10/Materials | Entered another Materials area 185 | -9/Materials | Evolved 2 slots: Propulsion x1, Utility x1 185 | -9/Materials | Discovered new exit (range 7) 191 | -9/Materials | Entered Storage 251 | -9/Storage | Identified exit to Recycling 303 | -9/Storage | Build established: Mutant 376 | -9/Storage | Core integrity fell below 50% 391 | -9/Storage | Core integrity fell below 20% 399 | -9/Storage | Lost 6 parts (5n1w) 712 | -9/Storage | Destroyed by G-34 Mercenary with Small Laser Last Messages --------------- 00641_ ALERT: Suspicious activity at Terminal S005. Dispatching Investigation squad. 00649_ Triggered Shock Trap. 00649_ The floor emits a surge of raw power. 00649_ System corrupted (+1). 00650_ Triggered Shock Trap. 00650_ The floor emits a surge of raw power. 00650_ System corrupted (+1). 00656_ System corrupted: Substantial component data lost. 00661_ G-34 Mercenary destroyed. 00670_ Triggered Shock Trap. 00670_ The floor emits a surge of raw power. 00670_ System corrupted (+1). 00701_ K-01 Serf collects debris. 00704_ Y-45 Defender destroyed. 00705_ K-01 Serf collects debris. 00708_ Lgt. Armor Plating destroyed. 00709_ Overheating: Matter decay (-39). 00710_ Power failure, Imp. Ion Engine shutdown. Map ----- +----------------------------------------------------+ | ????????# ## """ T #??????????????????????????? | | ????????# ## """ " #??????????????????????????? | | ????????# ## #??????????????????????????? | | ???????## ## #??????????????????????????? | | ???????# # ! #??????????????????????????? | | ???????? # #??????????????????????????? | | ???????? # !! #??????????????????????????? | | ???????? #######+##??????????????????????????? | | #####???# #??????# #???????????????????????????? | | # ???# #??????# #???????????????????????????? | | # ??# #??????# #???????????????????????????? | | # ??# #??????# #?####??????????????????????? | | # ## ##???### ### #??????????????????????? | | # # ##### ## #??????????????????????? | | # + ## #??????????????????????? | | # # T ## ##?????????????????????? | | # # ##### / T#?????????????????????? | | # ?## ##???## ### ##?????????????????????? | | # ??# #?????# #?#####??????????????????????? | | # ???# #?????#%#????????????????????????????? | | # ???# #???###%#######??????????????????????? | | # ???## ##??#%!*= T #??????????????????????? | | ####???# #??# =[= ###############????????? | | # ????# #??# # #????????? | | # ???# #??# =g[ #????????? | | # ???# #??# @# =%* #????????? | | # ??## ##??# """ #+#+####### #????????? | | # ???# #??# """ # ?????# #????????? | | # ??# #??## """ # ] ????# #????????? | | # ??# #???###########% ??# #????????? | | # ## ##????????????# ## #????????? | | # # % #????????????#%! ## #????????? | | # + #????????????#+###/##### #????????? | | # # #????????????????? ??? ????????? | | # # #????????????????? ?? ????????? | | # ?## ##????????????????? ? ???????? | | ######### !#??????????????????Y"##?#####/???????? | | ?? # [#???????????????????"#??????? ???????? | | ? """ # ##############??????????????? ??????? | | # """ !# # %=!%!=#????????????????"??????? | | # """ # # """%=#???????????????????????? | | #[ """ # # "T" "" [*#???????????????????????? | | # """ + " """ ""%%=#???????????????????????? | | # # !# [!=#???????????????????????? | | ?######## !######## #####???????????????????????? | | ????????# !T#?????###???????????????????????????? | | ????????# ##???????????????????????????????????? | | ????????""""????????????????????????????????????? | | ????????????????????????????????????????????????? | | ??????????>?????????????????????????????????????? | +----------------------------------------------------+ Best States ------------- Heat Dissipation 38 Energy Generation 12 Energy Capacity 265 Matter Stores 300 Matter Capacity 300 Sight Range 16 Terrain Scan Density 10 Armor Coverage 150 Evasion (%) 63 Recoil Reduction 1 Item Schematics ----------------- None Robot Schematics ------------------ None Fabricated ------------ Nothing Alien Tech Used ----------------- None Achievements -------------- None Challenges ------------ None Game ------ Seed AlloySpliceDevice Manual? 0 Play Time 00:06:50 Cumulative 54.6 hours Start 2024.04.06 @ 16:19:07 End 2024.04.06 @ 16:25:52 Sessions 1 Manual Loads 0 Difficulty Rogue Special Mode None Game No. 64 Rogue 64 Adventurer 0 Explorer 0 Win Type - Total 0 Types 0/0/0/0/0/0/0/0/0 Lore% 38 Gallery% 56 Achievement% 46 Wizard Run 0 Options --------- Layout 1 ASCII 0 Keyboard 0 Movement Numpad Keybinds 0 Fullscreen 1 Font 24/Smallcaps Map View 50x35 Zoom Use 0% Tactical HUD 1 Map Filters NONE Filters NONE Steam 1 RUN: 16ed8c02-14fc-4686-9bdd-25fc7783abfd